bitfinex/quotes_ETHUSD_20241116
["timestamp","ask_amount","ask_price","bid_price","bid_amount"]
[1731795844085,0.05283582,3154.7,3154.3,3.17027]
[1731795844253,0.7738,3154.8,3154.3,3.17027]
[1731795844436,0.05283582,3154.7,3154.2,7.11309]
[1731795845635,0.05283582,3154.7,3154.3,3.17026]
[1731795845872,3.94357,3154.8,3154.3,3.17026]
[1731795846082,0.05283582,3154.7,3154.3,3.17026]
[1731795846385,3.94357,3154.8,3154.3,3.17026]
[1731795846545,0.05281801,3154.6,3154.3,3.17026]
[1731795846747,0.05283582,3154.7,3154.3,3.17026]
[1731795847059,3.94357,3154.8,3154.3,3.17026]
[1731795847241,0.05283582,3154.7,3154.3,3.17026]
[1731795847445,3.94357,3154.8,3154.3,3.17026]
[1731795847646,0.05283582,3154.7,3154.3,3.17026]
[1731795847847,3.94357,3154.8,3154.3,3.17026]
[1731795848048,0.05283582,3154.7,3154.3,3.17026]
[1731795848383,3.94357,3154.8,3154.3,3.17026]
[1731795848571,0.05281801,3154.6,3154.3,3.17026]
[1731795848793,0.05283582,3154.7,3154.3,3.17026]
[1731795848948,0.05280019,3154.5,3154.3,3.17026]
[1731795849285,0.05278238,3154.4,3154.3,3.17026]
[1731795849591,0.7738,3154.8,3154.2,3.94285]
[1731795849744,0.05278238,3154.4,3154.2,3.94285]
[1731795849940,3.16988,3154.7,3154.2,3.94285]
[1731795850179,0.05276456,3154.3,3154.2,3.94285]
[1731795850366,3.16988,3154.7,3154.2,3.94285]
[1731795850573,0.05276456,3154.3,3154.2,3.94285]
[1731795850773,3.16988,3154.7,3154.2,3.94285]
[1731795850984,0.05276456,3154.3,3154.2,3.94285]
[1731795851158,3.16988,3154.7,3154.2,3.94285]
[1731795851366,0.05276456,3154.3,3154.2,3.94285]
[1731795851546,3.16988,3154.7,3154.2,3.94285]
[1731795851547,0.55,3154.7,3154.2,3.94278]
[1731795852077,0.05281801,3154.6,3154.2,3.94278]
[1731795852647,0.05281801,3154.6,3154.3,3.17024]
[1731795854785,0.05281801,3154.6,3154.5,3.93107]
[1731795855087,3.16952,3155.1,3154.6,3.16996]
[1731795855590,0.7597,3155.2,3154.6,3.16996]
[1731795855758,3.9291,3155.2,3154.6,3.16996]
[1731795855962,4.70505299,3155.2,3154.6,3.16996]
[1731795856560,0.55,3155.1,3154.6,3.16996]
[1731795858186,0.55,3155.1,3154.8,3.16976]
[1731795858350,1.3097,3155.4,3154.8,3.93076]
[1731795858551,1.3097,3155.4,3154.9,3.1696]
[1731795859199,1.3097,3155.4,3154.8,3.93076]
[1731795859484,1.3097,3155.4,3155.0,3.16956]
[1731795860246,0.05305308,3155.3,3155.0,3.16956]
[1731795860495,0.05305308,3155.3,3154.9,3.16967]
[1731795860674,0.05305308,3155.3,3155.2,3.16937]
[1731795860875,0.03212461,3155.5,3155.2,3.93877]
[1731795861084,0.03212461,3155.5,3155.4,3.16917]
[1731795863498,0.03212461,3155.5,3155.2,3.93876]
[1731795863674,0.03212461,3155.5,3155.2,0.7694]
[1731795864709,0.03212461,3155.5,3155.2,3.93874]
[1731795865487,0.03212461,3155.5,3155.2,0.7694]
[1731795865683,0.03212461,3155.5,3155.2,3.93876]
[1731795865875,0.03212461,3155.5,3155.3,3.16926]
[1731795866078,0.03212461,3155.5,3155.2,3.93876]
[1731795866324,0.03212461,3155.5,3155.3,3.16926]
[1731795866532,0.03212461,3155.5,3155.2,3.93876]
[1731795866691,0.03212461,3155.5,3155.3,3.16925]
[1731795868092,0.03212461,3155.5,3155.2,3.93876]
[1731795868591,0.78452461,3155.5,3155.0,3.16955]
[1731795869313,3.95362461,3155.5,3155.0,3.16955]
[1731795870335,4.66589007,3155.5,3155.0,3.16955]
[1731795870718,3.16921,3155.4,3154.8,3.16973]
[1731795871025,3.16921,3155.4,3154.9,3.16966]
[1731795871191,3.95361461,3155.5,3154.9,3.16966]
[1731795873018,0.7721,3155.4,3154.9,3.16966]
[1731795875094,0.7721,3155.4,3155.0,3.16955]
[1731795875297,0.05136552,3155.3,3155.0,3.16955]
[1731795876909,0.03212461,3155.5,3155.2,3.16937]
[1731795877215,0.03212461,3155.5,3155.2,3.16929]
[1731795877397,0.05134348,3155.4,3155.2,6.33859]
[1731795878491,0.05134348,3155.4,3155.2,3.16929]
[1731795878690,0.05134348,3155.4,3155.3,3.16927]
[1731795884665,0.03212461,3155.5,3155.4,3.16917]
[1731795900461,0.03212461,3155.5,3155.4,6.99285289]
[1731795901519,0.03212461,3155.5,3155.4,8.23223936]
[1731795906386,0.03212461,3155.5,3155.4,9.85150872]
[1731795906607,0.03212461,3155.5,3155.4,8.54873936]
[1731795908237,0.03212461,3155.5,3155.4,9.85150872]
[1731795908404,4.61e-06,3155.5,3155.4,13.19050872]
[1731795908607,0.8088,3156.7,3155.6,1.128]
[1731795908938,0.8088,3156.7,3156.6,3.16796]
[1731795909243,0.8088,3157.2,3156.6,3.16787]
[1731795909538,0.8088,3157.2,3156.8,3.16769]
[1731795910098,0.8088,3157.2,3156.7,3.16785]
[1731795910400,0.8088,3157.2,3156.2,3.97982]
[1731795910604,0.8088,3157.2,3156.7,3.16779]
[1731795913871,3.97621,3157.2,3156.6,3.16794]
[1731795914317,3.97621,3157.2,3156.5,3.16804]
[1731795914520,3.97621,3157.2,3156.7,3.16784]
[1731795915941,3.97621,3157.2,3156.5,3.16804]
[1731795916127,0.04716619,3157.1,3156.5,6.33603]
[1731795916333,0.04716619,3157.1,3156.6,3.16789]
[1731795925601,0.04716619,3157.1,3156.4,3.16815]
[1731795925784,3.16752,3157.1,3156.5,3.16803]
[1731795926158,0.04720982,3157.0,3156.5,3.16803]
[1731795926768,0.04720982,3157.0,3156.6,3.16796]
[1731795928455,0.8088,3157.2,3156.7,3.16778]
[1731795928655,0.04719658,3156.9,3156.8,3.16776]
[1731795928870,0.8088,3157.2,3156.8,3.16776]
[1731795929072,0.04719658,3156.9,3156.8,3.16776]
[1731795929300,0.8088,3157.2,3156.8,3.16776]
[1731795929508,0.04720227,3156.9,3156.8,3.16776]
[1731795929707,0.8088,3157.2,3156.8,3.16776]
[1731795930311,0.04723784,3157.1,3156.8,3.16776]
[1731795932209,0.04723784,3157.1,3156.9,3.16765]
[1731795935000,0.04723784,3157.1,3157.0,3.16756]
[1731795935186,0.04723784,3157.1,3156.9,3.16758]
[1731795935507,0.04723784,3157.1,3157.0,3.16756]
[1731795936762,0.7932,3157.4,3157.0,3.16756]
[1731795937106,0.04731774,3157.3,3157.0,3.16756]
[1731795937776,0.04731774,3157.3,3157.1,3.16743]
[1731795938388,0.04731774,3157.3,3157.2,3.16736]
[1731795938583,0.7932,3157.6,3157.2,3.16736]
[1731795938787,0.0473533,3157.5,3157.2,3.16736]
[1731795939393,0.0473533,3157.5,3157.0,3.16756]
[1731795939600,0.0473533,3157.5,3157.1,3.16745]
[1731795941099,0.0473533,3157.5,3157.3,3.16725]
[1731795941294,0.0473533,3157.5,3157.3,3.96435]
[1731795941501,0.0473533,3157.5,3157.3,3.16725]
[1731795941826,0.04739236,3157.4,3157.3,3.16725]
[1731795942192,0.8164,3157.9,3157.5,3.16701]
[1731795942397,0.04587347,3157.8,3157.5,6.33402]
[1731795942808,0.04587347,3157.8,3157.5,3.16701]
[1731795943026,0.04587347,3157.8,3157.5,3.16699]
[1731795943692,0.04587347,3157.8,3157.4,3.16716]
[1731795950435,0.04587347,3157.8,3157.2,6.16735]
[1731795950651,0.04587347,3157.8,3157.2,9.33464]
[1731795950945,0.04587347,3157.8,3157.3,3.16724]
[1731795953247,0.04587347,3157.8,3157.4,3.16715]
[1731795953441,0.04587347,3157.8,3157.5,0.8013]
[1731795953796,0.04587347,3157.8,3157.5,3.9683]
[1731795954333,0.04587347,3157.8,3157.5,0.8013]
[1731795954703,0.04587347,3157.8,3157.5,3.96835]
[1731795955421,0.04587347,3157.8,3157.5,0.8013]
[1731795958581,0.04587347,3157.8,3157.4,3.1671]
[1731795959576,3.21264347,3157.8,3157.3,0.8067]
[1731795959762,0.04587347,3157.8,3157.3,3.97389]
[1731795960237,0.7707,3157.5,3157.0,0.7744]
[1731795960587,3.16717,3157.4,3156.9,3.16765]
[1731795960757,3.21306438,3157.4,3156.9,3.16765]
[1731795961579,3.21306438,3157.4,3156.8,3.94211]
[1731795961789,3.21306438,3157.4,3156.8,7.10979]
[1731795962174,3.21306438,3157.4,3156.8,7.10975]
[1731795962482,3.21306438,3157.4,3156.8,3.94207]
[1731795963465,3.21306438,3157.4,3156.9,3.16766]
[1731795963845,3.21306438,3157.4,3156.8,3.94207]
[1731795964046,3.21306438,3157.4,3156.8,7.10975]
[1731795964279,3.21306438,3157.4,3156.8,3.94207]
[1731795965288,3.21306438,3157.4,3156.8,7.10974]
[1731795966490,3.21306438,3157.4,3156.8,7.10976]
[1731795966791,3.21306438,3157.4,3156.8,3.94207]
[1731795967093,3.21306438,3157.4,3156.9,3.16765]
[1731795967394,0.04589438,3157.4,3156.9,3.16765]
[1731795968802,3.21305438,3157.4,3156.9,3.16765]
[1731795980316,0.04589438,3157.4,3157.1,3.16743]
[1731795980812,0.04589438,3157.4,3157.0,0.06334443]
[1731795980813,0.04589438,3157.4,3157.0,3.16755]
[1731795981016,0.04589438,3157.4,3156.9,3.16759]
[1731795981215,0.04589438,3157.4,3157.1,3.16744]
[1731795981418,0.04589438,3157.4,3157.2,3.16735]
[1731795981983,0.04589438,3157.4,3157.3,3.16726]
[1731795982292,0.793,3157.8,3157.3,3.16726]
[1731795982494,0.04436322,3157.4,3157.3,3.16726]
[1731795982726,0.793,3157.8,3157.3,3.16726]
[1731795982920,0.04436322,3157.4,3157.3,3.16726]
[1731795983268,0.793,3157.8,3157.4,3.1671]
[1731795991344,0.793,3157.8,3157.5,3.16704]
[1731795995357,0.793,3157.8,3157.2,3.92042]
[1731795995358,0.04444722,3157.7,3157.3,3.1672]
[1731795995545,0.04444722,3157.7,3157.4,3.16715]
[1731795995748,0.793,3157.8,3157.4,3.16715]
[1731795995911,0.04442944,3157.6,3157.4,3.16715]
[1731795996106,0.793,3157.8,3157.4,3.16715]
[1731795996756,0.04444722,3157.7,3157.4,3.16715]
[1731795997160,0.793,3157.8,3157.3,3.16722]
[1731795997362,0.04442944,3157.6,3157.3,3.16722]
[1731795997659,0.04441167,3157.5,3157.4,3.16716]
[1731795998030,0.793,3157.8,3157.4,3.16716]
[1731795998372,0.04441167,3157.5,3157.4,3.16716]
[1731795998508,0.793,3157.8,3157.4,3.16716]
[1731795998709,0.04441167,3157.5,3157.4,3.16716]
[1731795998963,0.793,3157.8,3157.4,3.16716]
[1731795999115,0.04441167,3157.5,3157.4,3.16716]
[1731795999756,0.793,3157.8,3157.4,3.16716]
[1731795999961,0.04441167,3157.5,3157.4,3.16716]
[1731796000455,0.793,3157.8,3157.4,3.16716]
[1731796000628,0.04441167,3157.5,3157.4,3.16716]
[1731796000833,0.793,3157.8,3157.4,3.16716]
[1731796001061,0.04444722,3157.7,3157.4,3.16716]
[1731796001412,0.793,3157.8,3157.4,3.16716]
[1731796001612,0.04444722,3157.7,3157.4,3.16716]
[1731796001907,0.793,3157.8,3157.4,3.16716]
[1731796002113,0.04442944,3157.6,3157.4,3.16716]
[1731796002316,0.793,3157.8,3157.4,3.16716]
[1731796002517,0.04441167,3157.5,3157.4,3.16716]
[1731796003183,0.793,3157.8,3157.4,3.16716]
[1731796003661,0.04444722,3157.7,3157.4,3.16716]
[1731796004168,0.793,3157.8,3157.4,3.16716]
[1731796004367,0.04443288,3157.6,3157.4,3.16716]
[1731796004540,0.793,3157.8,3157.4,3.16716]
[1731796005058,0.04445066,3157.7,3157.4,3.16716]
[1731796005434,0.793,3157.8,3157.4,3.16716]
[1731796005637,0.04445066,3157.7,3157.4,3.16716]
[1731796005949,0.793,3157.8,3157.4,3.16716]
[1731796006158,0.04446355,3157.6,3157.4,3.16716]
[1731796006321,0.793,3157.8,3157.4,3.16716]
[1731796006528,0.04444577,3157.5,3157.4,3.16716]
[1731796006771,0.793,3157.8,3157.4,3.16716]
[1731796007276,0.04386666,3157.7,3157.4,3.16716]
[1731796007567,0.04386666,3157.7,3157.5,3.16706]
[1731796007738,0.793,3157.8,3157.5,3.16706]
[1731796007939,0.04384888,3157.6,3157.5,3.16706]
[1731796008139,0.793,3157.8,3157.5,3.16706]
[1731796008339,0.04384888,3157.6,3157.5,3.16706]
[1731796008534,0.793,3157.8,3157.3,3.16717]
[1731796008737,0.04384888,3157.6,3157.4,3.1671]
[1731796008961,0.04386666,3157.7,3157.4,3.1671]
[1731796009161,0.0438311,3157.5,3157.4,3.1671]
[1731796009368,0.793,3157.8,3157.4,3.1671]
[1731796009565,0.0438311,3157.5,3157.4,3.1671]
[1731796009766,0.793,3157.8,3157.4,3.1671]
[1731796009967,0.0438311,3157.5,3157.4,3.1671]
[1731796010142,0.793,3157.8,3157.4,3.1671]
[1731796010342,0.0438311,3157.5,3157.4,3.1671]
[1731796010540,0.793,3157.8,3157.4,3.1671]
[1731796010732,0.0438311,3157.5,3157.4,3.1671]
[1731796010931,0.793,3157.8,3157.4,3.1671]
[1731796011474,0.04386666,3157.7,3157.4,3.1671]
[1731796011883,0.793,3157.8,3157.4,3.1671]
[1731796012026,0.04384888,3157.6,3157.4,3.1671]
[1731796012385,0.793,3157.8,3157.4,3.1671]
[1731796012526,0.0438311,3157.5,3157.4,3.1671]
[1731796012734,3.96566,3158.0,3157.5,3.16705]
[1731796013036,3.96566,3158.0,3157.4,3.1671]
[1731796013962,3.96566,3158.0,3157.5,3.16705]
[1731796014269,3.96566,3158.0,3157.3,3.23050785]
[1731796014794,3.96566,3158.0,3157.4,3.16712]
[1731796015599,3.16666,3157.9,3157.4,3.16712]
[1731796021987,3.16666,3157.9,3157.2,3.92038]
[1731796022190,3.16678,3157.8,3157.2,3.92038]
[1731796022492,3.16678,3157.8,3157.3,3.16723]
[1731796023586,0.7991,3158.0,3157.3,3.16723]
[1731796023797,3.16667,3157.9,3157.3,3.16723]
[1731796025486,0.04199016,3157.8,3157.3,3.16723]
[1731796026302,0.04199016,3157.8,3157.2,3.92038]
[1731796026450,0.04199016,3157.8,3157.4,3.16716]
[1731796028950,0.04199016,3157.8,3157.2,3.92038]
[1731796029150,0.04199016,3157.8,3157.3,3.16725]
[1731796029792,0.04199016,3157.8,3157.4,3.16716]
[1731796032800,0.7991,3158.0,3157.4,3.16716]
[1731796032955,0.04058889,3157.7,3157.4,3.16716]
[1731796033154,3.96572,3158.0,3157.4,3.16716]
[1731796033369,0.04057111,3157.6,3157.3,0.06333783]
[1731796033722,0.04055333,3157.5,3157.4,3.1671]
[1731796034222,3.96572,3158.0,3157.4,3.1671]
[1731796034385,0.04055333,3157.5,3157.4,3.1671]
[1731796034893,7.13237,3158.0,3157.4,3.1671]
[1731796035097,0.04055333,3157.5,3157.4,3.1671]
[1731796035267,3.96572,3158.0,3157.4,3.1671]
[1731796035615,0.04062445,3157.9,3157.4,3.1671]
[1731796035941,0.04062445,3157.9,3157.2,3.9204]
[1731796035942,0.04062445,3157.9,3157.5,3.16697]
[1731796037012,0.04062445,3157.9,3157.6,3.16694]
[1731796037963,0.04062445,3157.9,3157.5,0.7737]
[1731796038128,0.04062445,3157.9,3157.5,3.94075]
[1731796038708,0.04062445,3157.9,3157.6,3.16696]
[1731796040754,0.04061804,3157.8,3157.6,3.16696]
[1731796041262,0.04060026,3157.7,3157.6,3.16696]
[1731796041414,3.93528,3158.2,3157.6,3.16696]
[1731796041762,0.04067136,3158.1,3157.6,3.16696]
[1731796042562,0.04067136,3158.1,3157.7,3.16679]
[1731796043156,0.04067136,3158.1,3157.8,3.16669]
[1731796043589,0.04067136,3158.1,3157.9,3.16659]
[1731796044096,0.04065699,3158.0,3157.9,3.16659]
[1731796044296,0.7689,3158.4,3157.9,3.16659]
[1731796044497,0.7689,3158.4,3158.0,3.1665]
[1731796045193,0.7689,3158.4,3158.1,3.16643]
[1731796045357,0.7689,3158.4,3158.0,3.16646]
[1731796045692,0.96936,3158.6,3158.2,3.16632]
[1731796045894,0.96936,3158.6,3158.3,3.16623]
[1731796046068,0.14326,3158.6,3158.3,3.16623]
[1731796046505,0.14326,3158.6,3158.4,3.16615]
[1731796047802,0.14326,3158.6,3158.5,3.16605]
[1731796049771,0.18410425,3158.6,3158.5,3.16078]
[1731796050851,0.18410425,3158.6,3158.5,3.94868]
[1731796053529,0.18410425,3158.6,3158.5,5.31476031]
[1731796054039,0.14326,3158.6,3158.5,5.25144936]
[1731796055594,0.14326,3158.6,3158.5,8.25144936]
[1731796065635,0.14326,3158.6,3158.5,8.56764936]
[1731796075559,0.14326,3158.6,3158.5,11.89264936]
[1731796078493,0.14326,3158.6,3158.5,12.45264936]
[1731796079975,0.14326,3158.6,3158.5,13.75541872]
[1731796082589,0.14326,3158.6,3158.5,13.92330942]
[1731796084452,1e-05,3158.6,3158.5,13.93330942]
[1731796084966,0.7523,3159.9,3159.8,3.16475]
[1731796085350,0.175647,3160.0,3159.9,3.16465]
[1731796085560,0.175647,3160.0,3159.9,4.46741936]
[1731796085793,0.175647,3160.0,3159.9,6.66467305]
[1731796085997,0.125647,3160.0,3159.9,6.66467305]
[1731796086587,0.125647,3160.0,3159.9,9.98967305]
[1731796086770,0.125647,3160.0,3159.9,9.92638872]
[1731796086969,0.125647,3160.0,3159.9,6.61138872]
[1731796087170,0.125647,3160.0,3159.9,6.92758872]
[1731796088061,0.125647,3160.0,3159.9,6.61138872]
[1731796092446,0.125647,3160.0,3159.9,6.60986427]
[1731796096173,0.125647,3160.0,3159.9,9.60986427]
[1731796096922,0.125647,3160.0,3159.9,12.93486427]
[1731796099553,0.125647,3160.0,3159.9,13.48486427]
[1731796108161,0.125647,3160.0,3159.9,13.80106427]
[1731796110561,0.125647,3160.0,3159.9,15.06542927]
[1731796114166,0.125647,3160.0,3159.9,12.14369055]
[1731796114477,0.125647,3160.0,3159.9,12.10366427]
[1731796117178,0.125647,3160.0,3159.9,8.77866427]
[1731796118236,0.125647,3160.0,3159.9,9.09486427]
[1731796123039,0.898847,3160.0,3159.9,8.76866427]
[1731796125189,0.898847,3160.0,3159.9,6.16312555]
[1731796125358,0.898847,3160.0,3159.9,7.46589491]
[1731796126005,0.898847,3160.0,3159.9,6.16312555]
[1731796126140,0.898847,3160.0,3159.9,7.46589491]
[1731796126344,0.93625644,3160.0,3159.9,7.46589491]
[1731796135061,0.93625644,3160.0,3159.9,6.16312555]
[1731796135300,0.7937,3159.9,3159.7,3.16479]
[1731796135676,0.03609429,3159.8,3159.7,3.16479]
[1731796135884,0.7937,3159.8,3159.7,3.16479]
[1731796136405,0.7937,3159.8,3159.6,3.16494]
[1731796136406,0.82979429,3159.8,3159.6,3.16494]
[1731796136702,0.82979429,3159.8,3159.7,1.30276936]
[1731796142412,0.82979429,3159.8,3159.7,4.46761936]
[1731796146333,0.03609429,3159.8,3159.7,4.46761936]
[1731796146498,0.7675,3159.9,3159.7,4.46761936]
[1731796146499,0.7675,3159.9,3159.8,3.16475]
[1731796146924,0.80335095,3159.9,3159.8,3.16475]
[1731796149328,0.03585095,3159.9,3159.8,6.22803929]
[1731796149684,0.125647,3160.0,3159.9,6.16465]
[1731796150601,0.125647,3160.0,3159.9,7.46741936]
[1731796151034,0.125647,3160.0,3159.9,8.29151936]
[1731796156129,0.125647,3160.0,3159.9,9.59428872]
[1731796156286,0.125647,3160.0,3159.9,8.29151936]
[1731796156699,0.125647,3160.0,3159.9,9.59428872]
[1731796158426,0.125647,3160.0,3159.9,9.91048872]
[1731796170849,0.125647,3160.0,3159.9,13.78548872]
[1731796171842,0.125647,3160.0,3159.9,13.79548872]
[1731796173832,0.12205099,3160.0,3159.9,13.79548872]
[1731796182307,0.12205099,3160.0,3159.9,11.18995]
[1731796182501,0.12205099,3160.0,3159.9,13.79548872]
[1731796186285,0.05660323,3160.0,3159.9,11.18995]
[1731796186506,0.05660323,3160.0,3159.9,11.17995]
[1731796186696,0.05660323,3160.0,3159.9,13.78548872]
[1731796192228,0.7603,3160.8,3160.7,3.16385]
[1731796192428,0.79643085,3160.8,3160.7,7.46661936]
[1731796192635,0.7603,3160.8,3160.7,7.46661936]
[1731796202115,0.7603,3160.8,3160.7,6.16385]
[1731796202309,0.7603,3160.8,3160.0,0.3162]
[1731796202515,0.392387,3160.8,3160.5,3.16403]
[1731796202719,0.8297,3160.7,3160.5,3.16403]
[1731796203220,0.8297,3160.7,3160.6,7.46671936]
[1731796204722,0.8297,3160.7,3160.6,6.16395]
[1731796209918,0.8297,3160.7,3160.0,0.8217]
[1731796210118,0.8039,3160.3,3159.8,0.49476977]
[1731796210323,3.172984,3160.9,3159.8,0.49476977]
[1731796210324,0.8039,3160.1,3159.8,0.49476977]
[1731796210475,0.8039,3160.0,3159.6,0.3162]
[1731796210674,0.8039,3160.0,3159.4,3.16507]
[1731796210876,0.8039,3159.9,3159.2,3.16532]
[1731796211116,0.8039,3159.9,3159.3,1.30276936]
[1731796211420,3.16457,3160.0,3159.3,1.30276936]
[1731796211421,0.8039,3159.7,3159.3,1.30276936]
[1731796212424,0.8039,3159.7,3159.0,3.48172]
[1731796212425,0.8039,3159.6,3159.0,3.16552]
[1731796212626,0.8039,3159.5,3159.0,4.46828936]
[1731796213064,0.8039,3159.5,3159.2,1.30276936]
[1731796214443,0.8039,3159.5,3159.1,3.0]
[1731796214623,0.8039,3159.5,3159.0,4.46828936]
[1731796214624,0.8039,3159.4,3159.0,1.30276936]
[1731796216393,0.8039,3159.4,3158.9,3.16564]
[1731796217207,0.8039,3159.3,3158.8,3.66062026]
[1731796217399,0.83975325,3159.3,3158.9,3.0]
[1731796217858,0.8039,3159.1,3158.8,0.49490026]
[1731796218003,0.0356446,3159.0,3158.8,0.49490026]
[1731796218343,0.8039,3158.9,3158.4,3.16611]
[1731796218645,0.83950754,3158.9,3158.5,0.49523306]
[1731796219017,0.8039,3158.7,3158.5,0.49523306]
[1731796219347,0.03553041,3158.6,3158.5,0.49523306]
[1731796221010,3.20148041,3158.6,3158.5,0.49523306]
[1731796221255,1.24306845,3158.6,3158.5,0.49523306]
[1731796221416,0.84253041,3158.6,3158.5,0.49523306]
[1731796222014,0.84253041,3158.6,3158.2,3.0]
[1731796230872,0.84253041,3158.6,3158.1,3.66171548]
[1731796230873,0.03553041,3158.6,3158.5,7.46881936]
[1731796231020,0.8132,3159.0,3158.8,3.16571]
[1731796231359,0.8132,3159.8,3159.3,3.16521]
[1731796231537,0.397789,3159.7,3159.3,3.16521]
[1731796235323,0.8132,3159.8,3159.4,3.16511]
[1731796236064,0.8132,3159.8,3159.1,3.16541]
[1731796236274,0.8132,3159.8,3159.3,3.16525]
[1731796238761,0.03201826,3159.7,3159.3,3.16525]
[1731796239199,0.8132,3159.8,3159.3,3.16525]
[1731796239341,0.0320005,3159.6,3159.3,3.16525]
[1731796239547,0.03201826,3159.7,3159.3,3.16525]
[1731796239727,0.03198274,3159.5,3159.3,3.16525]
[1731796239927,1.210986,3159.8,3159.3,3.16525]
[1731796240160,0.03196499,3159.4,3159.3,3.16525]
[1731796240324,1.210986,3159.8,3159.3,3.16525]
[1731796240524,0.03196385,3159.4,3159.3,3.16525]
[1731796240724,0.8132,3159.8,3159.3,3.16525]
[1731796241224,0.03201712,3159.7,3159.3,3.16525]
[1731796241455,0.8132,3159.8,3159.3,3.16525]
[1731796241679,0.03201599,3159.7,3159.3,3.16525]
[1731796241861,0.8132,3159.8,3159.3,3.16525]
[1731796242167,0.03201599,3159.7,3159.3,3.16525]
[1731796242669,0.03199823,3159.6,3159.3,3.16525]
[1731796242876,0.8132,3159.8,3159.3,3.16525]
[1731796243026,0.03209999,3159.7,3159.3,3.16525]
[1731796243365,0.8132,3159.8,3159.3,3.16525]
[1731796243523,0.03208223,3159.6,3159.3,3.16525]
[1731796243726,0.03209999,3159.7,3159.3,3.16525]
[1731796243978,0.03206447,3159.5,3159.3,3.16525]
[1731796244176,1.210986,3159.8,3159.3,3.16525]
[1731796244376,0.03204672,3159.4,3159.3,3.16525]
[1731796244840,0.8132,3159.8,3159.3,3.16525]
[1731796245043,0.03209999,3159.7,3159.3,3.16525]
[1731796245244,0.8132,3159.8,3159.3,3.16525]
[1731796245475,0.03209999,3159.7,3159.3,3.16525]
[1731796245664,0.8132,3159.8,3159.3,3.16525]
[1731796245980,0.42988599,3159.7,3159.3,3.16525]
[1731796248065,0.42988599,3159.7,3159.4,0.3162]
[1731796248263,0.42988599,3159.7,3159.3,3.16525]
[1731796250769,0.03209999,3159.7,3159.3,3.16525]
[1731796251082,0.8132,3159.8,3159.3,3.16525]
[1731796251292,0.03210112,3159.7,3159.3,3.16525]
[1731796251493,0.8132,3159.8,3159.3,3.16525]
[1731796251659,0.0320845,3159.6,3159.3,3.16525]
[1731796252000,0.8132,3159.8,3159.3,3.16525]
[1731796252193,0.03206674,3159.5,3159.3,3.16525]
[1731796252396,0.8132,3159.8,3159.3,3.16525]
[1731796252873,0.03210679,3159.7,3159.3,3.16525]
[1731796253072,0.8132,3159.8,3159.3,3.16525]
[1731796253269,0.03210679,3159.7,3159.3,3.16525]
[1731796253478,0.8132,3159.8,3159.3,3.16525]
[1731796253792,0.42989279,3159.7,3159.3,3.16525]
[1731796258629,0.42989279,3159.7,3159.4,3.16507]
[1731796258956,0.03210679,3159.7,3159.4,3.16507]
[1731796259454,0.8132,3159.8,3159.3,3.16525]
[1731796259661,0.03211133,3159.7,3159.3,3.16525]
[1731796259822,0.8132,3159.8,3159.3,3.16525]
[1731796260016,0.03211019,3159.7,3159.3,3.16525]
[1731796260469,0.03209244,3159.6,3159.3,6.33043]
[1731796260617,0.03209244,3159.6,3159.3,3.16518]
[1731796260816,0.03207468,3159.5,3159.3,3.16518]
[1731796261043,0.8132,3159.8,3159.2,6.1653]
[1731796261044,3.97801,3159.8,3159.2,6.1653]
[1731796261241,0.42991119,3159.7,3159.2,6.1653]
[1731796261517,0.42991119,3159.7,3159.3,3.16525]
[1731796263160,3.16522,3159.4,3158.7,0.7764]
[1731796263375,0.7923,3159.2,3158.8,3.0]
[1731796263830,0.03196392,3159.1,3158.6,3.0]
[1731796264037,3.19742392,3159.1,3158.6,3.0]
[1731796264436,3.16556,3159.0,3158.4,3.16608]
[1731796264633,3.16556,3159.0,3158.2,3.9427]
[1731796264634,3.16572,3158.9,3158.2,3.9427]
[1731796264838,0.7795,3158.8,3158.3,3.16619]
[1731796265169,0.03186789,3158.7,3158.3,3.16619]
[1731796266151,0.03186789,3158.7,3158.4,3.0]
[1731796267232,0.03186789,3158.7,3158.3,3.16623]
[1731796267623,0.03186789,3158.7,3158.4,3.0]
[1731796268741,0.03186789,3158.7,3158.2,3.0]
[1731796269963,0.74615468,3158.7,3158.2,3.0]
[1731796270325,3.91203468,3158.7,3158.2,3.0]
[1731796271368,0.7501,3158.6,3158.1,0.49526548]
[1731796271577,0.03186789,3158.7,3158.1,0.49526548]
[1731796271869,0.7501,3158.1,3157.6,3.66230728]
[1731796272167,0.03166972,3158.0,3157.6,3.66230728]
[1731796272465,0.03166972,3158.0,3157.6,0.49538728]
[1731796272941,3.19828972,3158.0,3157.6,0.49538728]
[1731796273336,3.16666,3157.9,3157.3,3.16725]
[1731796273674,0.0313719,3157.8,3157.3,3.16725]
[1731796273974,0.0313719,3157.8,3157.2,0.49544435]
[1731796273975,0.7501,3157.7,3157.2,3.66273435]
[1731796274328,0.03133634,3157.6,3157.2,3.66273435]
[1731796277261,0.7501,3157.7,3157.3,3.16725]
[1731796277676,0.6291,3157.7,3157.3,3.16725]
[1731796278040,0.03131817,3157.6,3157.3,3.16725]
[1731796279982,0.03131817,3157.6,3157.4,3.16716]
[1731796283051,0.03131817,3157.6,3157.2,3.66277435]
[1731796283251,0.03131817,3157.6,3157.3,3.16726]
[1731796284422,0.03131817,3157.6,3157.4,3.16715]
[1731796284721,0.03131817,3157.6,3157.2,3.16733]
[1731796286587,0.03131817,3157.6,3157.2,3.16729]
[1731796287525,0.03131817,3157.6,3157.1,6.16744]
[1731796289021,0.03131817,3157.6,3157.2,3.16734]
[1731796289821,0.03131817,3157.6,3157.2,3.1673]
[1731796290016,0.03131817,3157.6,3157.3,3.16725]
[1731796290222,0.03131817,3157.6,3157.2,3.1673]
[1731796290420,0.03131817,3157.6,3157.3,3.16725]
[1731796290590,0.03131817,3157.6,3157.2,3.1673]
[1731796290990,0.03131817,3157.6,3157.3,3.16719]
[1731796296553,0.03131817,3157.6,3157.5,6.99506]